[Event "Titled Tuesday Blitz February 14 Late 2023"]
[White "Chor, Kevin"]
[Black "Meunier-Pion, Jean"]
[WhiteFideId "2090740"]
[BlackFideId "20685327"]
[WhiteElo "1944"]
[BlackElo "2215"]
[Result "1/2-1/2"]
[Round "08"]
[TimeControl "180+2"]
[Date "2023.02.14"]
[WhiteClock "0:00:08"]
[BlackClock "0:00:05"]

1. e4 {[%clk 0:03:00]}  c5 {[%clk 0:02:59]} 2. Nf3 {[%clk 0:03:00]}  d6 {[%clk 0:02:58]} 3. d4 {[%clk 0:03:00]}  cxd4 {[%clk 0:02:58]} 4. Nxd4 {[%clk 0:03:01]}  Nf6 {[%clk 0:02:58]} 5. Nc3 {[%clk 0:03:01]}  a6 {[%clk 0:02:57]} 6. Be2 {[%clk 0:03:01]}  e5 {[%clk 0:02:57]} 7. Nb3 {[%clk 0:03:01]}  Be7 {[%clk 0:02:56]} 8. O-O {[%clk 0:03:01]}  O-O {[%clk 0:02:56]} 9. Be3 {[%clk 0:03:01]}  Be6 {[%clk 0:02:55]} 10. Nd5 {[%clk 0:03:01]}  Nbd7 {[%clk 0:02:52]} 11. Qd3 {[%clk 0:03:01]}  Rc8 {[%clk 0:02:49]} 12. c4 {[%clk 0:02:56]}  b6 {[%clk 0:02:29]} 13. Rfd1 {[%clk 0:02:50]}  Bxd5 {[%clk 0:02:25]} 14. exd5 {[%clk 0:02:46]}  Nc5 {[%clk 0:02:21]} 15. Qc2 {[%clk 0:02:38]}  g6 {[%clk 0:02:12]} 16. Nd2 {[%clk 0:02:33]}  a5 {[%clk 0:02:10]} 17. b3 {[%clk 0:02:30]}  Nfd7 {[%clk 0:02:05]} 18. a3 {[%clk 0:02:24]}  f5 {[%clk 0:02:03]} 19. Bh6 {[%clk 0:02:24]}  Rf7 {[%clk 0:01:38]} 20. b4 {[%clk 0:02:24]}  Nb7 {[%clk 0:01:38]} 21. Qd3 {[%clk 0:02:12]}  e4 {[%clk 0:01:36]} 22. Qg3 {[%clk 0:02:08]}  Bf6 {[%clk 0:01:35]} 23. Rac1 {[%clk 0:02:05]}  Be5 {[%clk 0:01:31]} 24. Bf4 {[%clk 0:01:58]}  Qf6 {[%clk 0:01:14]} 25. Nb3 {[%clk 0:01:50]}  Bb2 {[%clk 0:01:08]} 26. Rc2 {[%clk 0:01:49]}  Bxa3 {[%clk 0:01:06]} 27. bxa5 {[%clk 0:01:49]}  bxa5 {[%clk 0:01:04]} 28. Nxa5 {[%clk 0:01:27]}  Nxa5 {[%clk 0:01:04]} 29. Qxa3 {[%clk 0:01:27]}  Nb7 {[%clk 0:01:04]} 30. Qg3 {[%clk 0:01:07]}  Ndc5 {[%clk 0:00:40]} 31. h4 {[%clk 0:01:04]}  Ra8 {[%clk 0:00:36]} 32. Bg5 {[%clk 0:01:00]}  Qg7 {[%clk 0:00:33]} 33. Be3 {[%clk 0:01:00]}  Ra3 {[%clk 0:00:25]} 34. Qg5 {[%clk 0:00:50]}  Qf6 {[%clk 0:00:21]} 35. Qf4 {[%clk 0:00:47]}  Rf8 {[%clk 0:00:16]} 36. Bd4 {[%clk 0:00:45]}  Qe7 {[%clk 0:00:14]} 37. Rb1 {[%clk 0:00:41]}  Rfa8 {[%clk 0:00:14]} 38. h5 {[%clk 0:00:38]}  Ra2 {[%clk 0:00:12]} 39. Rcb2 {[%clk 0:00:27]}  Rxb2 {[%clk 0:00:12]} 40. Rxb2 {[%clk 0:00:28]}  Ra1+ {[%clk 0:00:12]} 41. Kh2 {[%clk 0:00:29]}  e3 {[%clk 0:00:06]} 42. hxg6 {[%clk 0:00:21]}  exf2 {[%clk 0:00:05]} 43. Qh6 {[%clk 0:00:13]}  hxg6 {[%clk 0:00:02]} 44. Qh8+ {[%clk 0:00:12]}  Kf7 {[%clk 0:00:02]} 45. Qh7+ {[%clk 0:00:13]}  Ke8 {[%clk 0:00:03]} 46. Qxg6+ {[%clk 0:00:13]}  Qf7 {[%clk 0:00:02]} 47. Qxf7+ {[%clk 0:00:13]}  Kxf7 {[%clk 0:00:03]} 48. Bxf2 {[%clk 0:00:13]}  Ra4 {[%clk 0:00:02]} 49. Bg3 {[%clk 0:00:12]}  Kf6 {[%clk 0:00:02]} 50. Rb6 {[%clk 0:00:10]}  Ra6 {[%clk 0:00:01]} 51. Rb5 {[%clk 0:00:07]}  Ra8 {[%clk 0:00:01]} 52. Bxd6 {[%clk 0:00:06]}  Nxd6 {[%clk 0:00:02]} 53. Rxc5 {[%clk 0:00:06]}  Ne4 {[%clk 0:00:02]} 54. Rc6+ {[%clk 0:00:07]}  Ke5 {[%clk 0:00:03]} 55. Bf3 {[%clk 0:00:07]}  Kf4 {[%clk 0:00:03]} 56. Bxe4 {[%clk 0:00:07]}  fxe4 {[%clk 0:00:04]} 57. d6 {[%clk 0:00:08]}  e3 {[%clk 0:00:04]} 58. Rc7 {[%clk 0:00:07]}  Rd8 {[%clk 0:00:04]} 59. Rf7+ {[%clk 0:00:07]}  Ke5 {[%clk 0:00:04]} 60. Re7+ {[%clk 0:00:08]}  Kd4 {[%clk 0:00:05]} 61. d7 {[%clk 0:00:08]}  Kxc4 {[%clk 0:00:04]} 62. Kg3 {[%clk 0:00:08]}  Kd3 {[%clk 0:00:04]} 63. Kf3 {[%clk 0:00:08]}  e2 {[%clk 0:00:04]} 64. Rxe2 {[%clk 0:00:08]}  Rxd7 {[%clk 0:00:05]} 65. Re3+ {[%clk 0:00:09]}  Kd2 {[%clk 0:00:05]} 66. Re4 {[%clk 0:00:09]}  Rf7+ {[%clk 0:00:05]} 67. Kg3 {[%clk 0:00:10]}  Kd3 {[%clk 0:00:05]} 68. Re6 {[%clk 0:00:10]}  Rg7+ {[%clk 0:00:04]} 69. Kf3 {[%clk 0:00:10]}  Rf7+ {[%clk 0:00:05]} 70. Kg3 {[%clk 0:00:10]}  Rg7+ {[%clk 0:00:06]} 71. Kh2 {[%clk 0:00:11]}  Rh7+ {[%clk 0:00:06]} 72. Kg1 {[%clk 0:00:11]}  Kd4 {[%clk 0:00:06]} 73. g3 {[%clk 0:00:11]}  Kd5 {[%clk 0:00:07]} 74. Re3 {[%clk 0:00:11]}  Kd4 {[%clk 0:00:07]} 75. Re2 {[%clk 0:00:10]}  Kd3 {[%clk 0:00:06]} 76. Re6 {[%clk 0:00:10]}  Kd4 {[%clk 0:00:05]} 77. Kg2 {[%clk 0:00:11]}  Kd5 {[%clk 0:00:05]} 78. Re8 {[%clk 0:00:11]}  Kd6 {[%clk 0:00:05]} 79. g4 {[%clk 0:00:11]}  Kd7 {[%clk 0:00:06]} 80. Re2 {[%clk 0:00:11]}  Re7 {[%clk 0:00:06]} 81. Rf2 {[%clk 0:00:06]}  Ke8 {[%clk 0:00:06]} 82. Kg3 {[%clk 0:00:06]}  Rf7 {[%clk 0:00:05]} 83. Re2+ {[%clk 0:00:06]}  Kf8 {[%clk 0:00:05]} 84. g5 {[%clk 0:00:06]}  Kg7 {[%clk 0:00:05]} 85. Kg4 {[%clk 0:00:07]}  Ra7 {[%clk 0:00:05]} 86. Re4 {[%clk 0:00:06]}  Kg6 {[%clk 0:00:04]} 87. Re6+ {[%clk 0:00:06]}  Kg7 {[%clk 0:00:05]} 88. Kf5 {[%clk 0:00:07]}  Ra5+ {[%clk 0:00:05]} 89. Kg4 {[%clk 0:00:08]}  Ra7 {[%clk 0:00:05]} 90. Kh5 {[%clk 0:00:08]}  Rb7 {[%clk 0:00:05]} 91. Rg6+ {[%clk 0:00:08]}  Kh7 {[%clk 0:00:05]} 92. Rh6+ {[%clk 0:00:09]}  Kg7 {[%clk 0:00:06]} 93. Rd6 {[%clk 0:00:09]}  Ra7 {[%clk 0:00:05]} 94. Rd4 {[%clk 0:00:08]}  Rb7 {[%clk 0:00:05]} 95. Kg4 {[%clk 0:00:08]}  Ra7 {[%clk 0:00:05]} 96. Kf5 {[%clk 0:00:09]}  Rb7 {[%clk 0:00:05]} 97. Re4 {[%clk 0:00:08]}  Ra7 {[%clk 0:00:05]} 98. Kf4 {[%clk 0:00:09]}  Rb7 {[%clk 0:00:05]} 99. Kf5 {[%clk 0:00:09]}  Ra7 {[%clk 0:00:06]} 100. Re5 {[%clk 0:00:09]}  Rb7 {[%clk 0:00:06]} 101. g6 {[%clk 0:00:10]}  Ra7 {[%clk 0:00:06]} 102. Re4 {[%clk 0:00:10]}  Ra5+ {[%clk 0:00:06]} 103. Kg4 {[%clk 0:00:10]}  Kxg6 {[%clk 0:00:05]} 104. Re6+ {[%clk 0:00:08]}  Kf7 {[%clk 0:00:05]} 105. Re4 {[%clk 0:00:08]}  Kf6 {[%clk 0:00:05]} 106. Rf4+ {[%clk 0:00:08]}  Kg6 {[%clk 0:00:05]} 107. Rc4 {[%clk 0:00:08]}  Ra6 {[%clk 0:00:05]} 108. Re4 {[%clk 0:00:08]}  Ra5 {[%clk 0:00:05]} 1/2-1/2


[Site "https://www.chess.com"]

[Event "Titled Tuesday Blitz February 14 Late 2023"]
[White "WindWhistler11"]
[Black "Fernandez, Maria Florencia"]
[BlackFideId "116459"]
[WhiteElo "2627"]
[BlackElo "2129"]
[Result "1-0"]
[Round "08"]
[TimeControl "180+2"]
[Date "2023.02.14"]
[WhiteClock "0:00:11"]
[BlackClock "0:00:04"]

1. Nf3 {[%clk 0:02:53]}  Nf6 {[%clk 0:02:58]} 2. g3 {[%clk 0:02:54]}  g6 {[%clk 0:02:58]} 3. d3 {[%clk 0:02:55]}  Bg7 {[%clk 0:02:59]} 4. Nbd2 {[%clk 0:02:56]}  O-O {[%clk 0:02:59]} 5. Bg2 {[%clk 0:02:57]}  d6 {[%clk 0:02:59]} 6. O-O {[%clk 0:02:58]}  e5 {[%clk 0:03:00]} 7. c4 {[%clk 0:02:58]}  Nc6 {[%clk 0:03:00]} 8. Rb1 {[%clk 0:02:58]}  Ne8 {[%clk 0:03:01]} 9. b4 {[%clk 0:02:59]}  f5 {[%clk 0:03:01]} 10. b5 {[%clk 0:02:59]}  Ne7 {[%clk 0:03:01]} 11. Bb2 {[%clk 0:02:57]}  h6 {[%clk 0:03:01]} 12. c5 {[%clk 0:02:56]}  g5 {[%clk 0:03:01]} 13. cxd6 {[%clk 0:02:47]}  cxd6 {[%clk 0:03:00]} 14. Qb3+ {[%clk 0:02:46]}  Kh7 {[%clk 0:02:58]} 15. Rfc1 {[%clk 0:02:40]}  Ng6 {[%clk 0:02:43]} 16. Ne1 {[%clk 0:01:52]}  g4 {[%clk 0:02:23]} 17. Ba3 {[%clk 0:01:22]}  h5 {[%clk 0:02:12]} 18. Nc4 {[%clk 0:01:18]}  h4 {[%clk 0:02:05]} 19. Qb4 {[%clk 0:01:12]}  Rf6 {[%clk 0:01:25]} 20. Ne3 {[%clk 0:01:11]}  f4 {[%clk 0:01:15]} 21. Nd5 {[%clk 0:01:11]}  fxg3 {[%clk 0:01:13]} 22. hxg3 {[%clk 0:01:07]}  hxg3 {[%clk 0:01:11]} 23. fxg3 {[%clk 0:00:58]}  Rf7 {[%clk 0:01:01]} 24. Be4 {[%clk 0:00:50]}  Bh6 {[%clk 0:00:53]} 25. Ng2 {[%clk 0:00:49]}  Bxc1 {[%clk 0:00:50]} 26. Bxc1 {[%clk 0:00:50]}  Kg7 {[%clk 0:00:37]} 27. Qd2 {[%clk 0:00:48]}  Nh8 {[%clk 0:00:11]} 28. Qh6+ {[%clk 0:00:40]}  Kg8 {[%clk 0:00:12]} 29. Bg5 {[%clk 0:00:26]}  Qd7 {[%clk 0:00:05]} 30. Bf6 {[%clk 0:00:18]}  Rxf6 {[%clk 0:00:03]} 31. Nxf6+ {[%clk 0:00:16]}  Nxf6 {[%clk 0:00:04]} 32. Qxf6 {[%clk 0:00:17]}  Qe6 {[%clk 0:00:02]} 33. Qg5+ {[%clk 0:00:13]}  Kf7 {[%clk 0:00:01]} 34. Ne3 {[%clk 0:00:14]}  Qf6 {[%clk 0:00:02]} 35. Rf1 {[%clk 0:00:13]}  Qxf1+ {[%clk 0:00:02]} 36. Kxf1 {[%clk 0:00:12]}  Be6 {[%clk 0:00:03]} 37. Bd5 {[%clk 0:00:09]}  Bxd5 {[%clk 0:00:02]} 38. Qf5+ {[%clk 0:00:09]}  Kg7 {[%clk 0:00:01]} 39. Qg5+ {[%clk 0:00:09]}  Ng6 {[%clk 0:00:01]} 40. Nxd5 {[%clk 0:00:10]}  Rf8+ {[%clk 0:00:01]} 41. Ke1 {[%clk 0:00:10]}  Rf7 {[%clk 0:00:01]} 42. Ne3 {[%clk 0:00:09]}  Kh7 {[%clk 0:00:01]} 43. Nf5 {[%clk 0:00:09]}  Nf8 {[%clk 0:00:01]} 44. Qh6+ {[%clk 0:00:07]}  Kg8 {[%clk 0:00:02]} 45. Nxd6 {[%clk 0:00:06]}  Rh7 {[%clk 0:00:02]} 46. Qg5+ {[%clk 0:00:06]}  Rg7 {[%clk 0:00:03]} 47. Qxe5 {[%clk 0:00:06]}  Ng6 {[%clk 0:00:03]} 48. Qd5+ {[%clk 0:00:06]}  Kh7 {[%clk 0:00:03]} 49. Nf5 {[%clk 0:00:07]}  Rc7 {[%clk 0:00:01]} 50. Qh1+ {[%clk 0:00:08]}  Kg8 {[%clk 0:00:01]} 51. Nh6+ {[%clk 0:00:08]}  Kg7 {[%clk 0:00:01]} 52. Kd2 {[%clk 0:00:09]}  Kf6 {[%clk 0:00:02]} 53. Nxg4+ {[%clk 0:00:09]}  Ke6 {[%clk 0:00:02]} 54. Ne3 {[%clk 0:00:09]}  Ne5 {[%clk 0:00:02]} 55. Qh6+ {[%clk 0:00:09]}  Kd7 {[%clk 0:00:02]} 56. Qg7+ {[%clk 0:00:09]}  Kc8 {[%clk 0:00:02]} 57. Qxe5 {[%clk 0:00:10]}  Rd7 {[%clk 0:00:02]} 58. Qf5 {[%clk 0:00:10]}  Kc7 {[%clk 0:00:02]} 59. g4 {[%clk 0:00:10]}  Rd6 {[%clk 0:00:02]} 60. Qf4 {[%clk 0:00:11]}  Kd7 {[%clk 0:00:02]} 61. g5 {[%clk 0:00:11]}  Rb6 {[%clk 0:00:02]} 62. Qf5+ {[%clk 0:00:10]}  Kc7 {[%clk 0:00:03]} 63. g6 {[%clk 0:00:11]}  Rd6 {[%clk 0:00:02]} 64. g7 {[%clk 0:00:11]}  Kb6 {[%clk 0:00:03]} 65. g8=Q {[%clk 0:00:11]}  Ka5 {[%clk 0:00:03]} 66. Nc4+ {[%clk 0:00:11]}  Ka4 {[%clk 0:00:03]} 67. Nxd6 {[%clk 0:00:11]}  a5 {[%clk 0:00:04]} 68. Qb3# {[%clk 0:00:11]} 1-0


[Site "https://www.chess.com"]

[Event "Titled Tuesday Blitz February 14 Late 2023"]
[White "Hajiyev, Kanan"]
[Black "Delorme, Axel"]
[WhiteFideId "13404148"]
[BlackFideId "632023"]
[WhiteElo "2197"]
[BlackElo "2483"]
[Result "0-1"]
[Round "08"]
[TimeControl "180+2"]
[Date "2023.02.14"]
[WhiteClock "0:00:01"]
[BlackClock "0:00:17"]

1. d4 {[%clk 0:03:00]}  d5 {[%clk 0:02:58]} 2. c4 {[%clk 0:02:59]}  e6 {[%clk 0:02:58]} 3. cxd5 {[%clk 0:03:00]}  exd5 {[%clk 0:02:58]} 4. Nc3 {[%clk 0:03:01]}  c5 {[%clk 0:02:58]} 5. Nf3 {[%clk 0:02:56]}  Nc6 {[%clk 0:02:57]} 6. Bg5 {[%clk 0:02:49]}  f6 {[%clk 0:02:57]} 7. Bf4 {[%clk 0:02:47]}  g5 {[%clk 0:02:58]} 8. Be3 {[%clk 0:02:42]}  g4 {[%clk 0:02:56]} 9. Nh4 {[%clk 0:02:41]}  f5 {[%clk 0:02:55]} 10. g3 {[%clk 0:02:42]}  Bg7 {[%clk 0:02:55]} 11. Bf4 {[%clk 0:02:15]}  cxd4 {[%clk 0:02:52]} 12. Nb1 {[%clk 0:02:07]}  Qb6 {[%clk 0:02:49]} 13. Bg2 {[%clk 0:02:03]}  Qxb2 {[%clk 0:02:48]} 14. Nd2 {[%clk 0:02:03]}  Nf6 {[%clk 0:02:45]} 15. O-O {[%clk 0:02:03]}  O-O {[%clk 0:02:45]} 16. Nb3 {[%clk 0:01:58]}  Ne4 {[%clk 0:02:42]} 17. Qc1 {[%clk 0:01:34]}  Qxc1 {[%clk 0:02:38]} 18. Raxc1 {[%clk 0:01:35]}  Nc3 {[%clk 0:02:31]} 19. Rc2 {[%clk 0:01:33]}  Nb4 {[%clk 0:02:23]} 20. Rd2 {[%clk 0:01:30]}  Ne4 {[%clk 0:02:17]} 21. Bxe4 {[%clk 0:01:29]}  dxe4 {[%clk 0:02:16]} 22. Bd6 {[%clk 0:01:29]}  Nc6 {[%clk 0:02:08]} 23. Bxf8 {[%clk 0:01:29]}  Kxf8 {[%clk 0:02:09]} 24. Rfd1 {[%clk 0:01:16]}  Be6 {[%clk 0:02:03]} 25. Nxd4 {[%clk 0:01:16]}  Nxd4 {[%clk 0:01:59]} 26. Rxd4 {[%clk 0:01:17]}  Bxd4 {[%clk 0:01:58]} 27. Rxd4 {[%clk 0:01:18]}  Rc8 {[%clk 0:01:53]} 28. Ra4 {[%clk 0:01:12]}  a6 {[%clk 0:01:48]} 29. Ra5 {[%clk 0:01:10]}  Rc1+ {[%clk 0:01:26]} 30. Kg2 {[%clk 0:01:10]}  Rc2 {[%clk 0:01:27]} 31. Nxf5 {[%clk 0:01:04]}  Rxe2 {[%clk 0:01:25]} 32. Nd4 {[%clk 0:01:01]}  Rd2 {[%clk 0:00:55]} 33. Nxe6+ {[%clk 0:01:00]}  Ke7 {[%clk 0:00:56]} 34. Ng5 {[%clk 0:00:53]}  e3 {[%clk 0:00:53]} 35. Nxh7 {[%clk 0:00:18]}  Rxf2+ {[%clk 0:00:49]} 36. Kg1 {[%clk 0:00:19]}  Kf7 {[%clk 0:00:34]} 37. Re5 {[%clk 0:00:15]}  Rxa2 {[%clk 0:00:28]} 38. Rxe3 {[%clk 0:00:15]}  b5 {[%clk 0:00:26]} 39. Ng5+ {[%clk 0:00:15]}  Kg6 {[%clk 0:00:26]} 40. Ne6 {[%clk 0:00:15]}  b4 {[%clk 0:00:25]} 41. Nc5 {[%clk 0:00:11]}  a5 {[%clk 0:00:23]} 42. Re6+ {[%clk 0:00:11]}  Kf5 {[%clk 0:00:20]} 43. Re8 {[%clk 0:00:07]}  a4 {[%clk 0:00:19]} 44. Rb8 {[%clk 0:00:05]}  b3 {[%clk 0:00:19]} 45. Rb4 {[%clk 0:00:05]}  b2 {[%clk 0:00:17]} 46. Nxa4 {[%clk 0:00:01]}  Ra1+ {[%clk 0:00:17]} 47. Kg2 {[%clk 0:00:01]}  b1=Q {[%clk 0:00:17]} 48. Rxb1 {[%clk 0:00:01]}  Rxb1 {[%clk 0:00:18]} 49. Nc3 {[%clk 0:00:02]}  Rb2+ {[%clk 0:00:18]} 50. Kg1 {[%clk 0:00:02]}  Rc2 {[%clk 0:00:17]} 51. Nb5 {[%clk 0:00:01]}  Ke4 {[%clk 0:00:17]} 52. Nd6+ {[%clk 0:00:02]}  Kf3 {[%clk 0:00:17]} 53. Kf1 {[%clk 0:00:01]}  Rc1# {[%clk 0:00:17]} 0-1


[Site "https://www.chess.com"]

[Event "Titled Tuesday Blitz February 14 Late 2023"]
[White "Haszon, David"]
[Black "Bas Mas, Jose Joaquin"]
[WhiteFideId "733610"]
[BlackFideId "22219064"]
[WhiteElo "2264"]
[BlackElo "2197"]
[Result "1-0"]
[Round "08"]
[TimeControl "180+2"]
[Date "2023.02.14"]
[WhiteClock "0:00:57"]
[BlackClock "0:00:22"]

1. e4 {[%clk 0:02:58]}  e6 {[%clk 0:03:00]} 2. d4 {[%clk 0:02:55]}  d5 {[%clk 0:03:01]} 3. Nd2 {[%clk 0:02:55]}  Nf6 {[%clk 0:03:00]} 4. e5 {[%clk 0:02:56]}  Nfd7 {[%clk 0:03:00]} 5. Bd3 {[%clk 0:02:57]}  c5 {[%clk 0:03:00]} 6. c3 {[%clk 0:02:58]}  Nc6 {[%clk 0:03:01]} 7. Ngf3 {[%clk 0:02:58]}  cxd4 {[%clk 0:02:47]} 8. cxd4 {[%clk 0:02:58]}  Qb6 {[%clk 0:02:43]} 9. O-O {[%clk 0:02:56]}  Be7 {[%clk 0:02:43]} 10. a3 {[%clk 0:02:50]}  g5 {[%clk 0:02:43]} 11. h3 {[%clk 0:02:47]}  h5 {[%clk 0:02:42]} 12. Nb3 {[%clk 0:02:32]}  g4 {[%clk 0:02:38]} 13. hxg4 {[%clk 0:02:32]}  hxg4 {[%clk 0:02:39]} 14. Nh2 {[%clk 0:02:32]}  g3 {[%clk 0:02:25]} 15. Nf3 {[%clk 0:02:26]}  gxf2+ {[%clk 0:02:16]} 16. Rxf2 {[%clk 0:02:27]}  a5 {[%clk 0:02:15]} 17. Be3 {[%clk 0:02:22]}  a4 {[%clk 0:02:11]} 18. Nc1 {[%clk 0:02:22]}  Ndxe5 {[%clk 0:02:08]} 19. Nxe5 {[%clk 0:02:17]}  Nxe5 {[%clk 0:02:08]} 20. Be2 {[%clk 0:02:03]}  Bd7 {[%clk 0:01:39]} 21. Nd3 {[%clk 0:01:55]}  Nc4 {[%clk 0:01:36]} 22. Qc1 {[%clk 0:01:46]}  Bh4 {[%clk 0:01:22]} 23. Rf3 {[%clk 0:01:33]}  Rc8 {[%clk 0:01:14]} 24. Nc5 {[%clk 0:01:30]}  Bb5 {[%clk 0:01:07]} 25. Bxc4 {[%clk 0:01:21]}  Bxc4 {[%clk 0:01:06]} 26. Qd1 {[%clk 0:01:17]}  Ke7 {[%clk 0:00:44]} 27. Qxa4 {[%clk 0:01:11]}  Qc6 {[%clk 0:00:33]} 28. Qb4 {[%clk 0:01:08]}  Qb5 {[%clk 0:00:31]} 29. Qd2 {[%clk 0:01:04]}  b6 {[%clk 0:00:28]} 30. Bg5+ {[%clk 0:01:04]}  Bxg5 {[%clk 0:00:22]} 31. Qxg5+ {[%clk 0:01:04]}  Ke8 {[%clk 0:00:23]} 32. Qg7 {[%clk 0:00:57]}  Rf8 {[%clk 0:00:21]} 33. Nxe6 {[%clk 0:00:57]}  fxe6 {[%clk 0:00:22]} 34. Rxf8# {[%clk 0:00:57]} 1-0


[Site "https://www.chess.com"]

[Event "Titled Tuesday Blitz February 14 Late 2023"]
[White "Ramirez Allo, Eduardo"]
[Black "Miszler, Levente"]
[WhiteFideId "2224178"]
[BlackFideId "763276"]
[WhiteElo "2274"]
[BlackElo "2271"]
[Result "1/2-1/2"]
[Round "08"]
[TimeControl "180+2"]
[Date "2023.02.14"]
[WhiteClock "0:00:49"]
[BlackClock "0:01:03"]

1. d4 {[%clk 0:03:00]}  Nf6 {[%clk 0:02:59]} 2. c4 {[%clk 0:03:01]}  e6 {[%clk 0:02:57]} 3. Nf3 {[%clk 0:03:01]}  b6 {[%clk 0:02:56]} 4. g3 {[%clk 0:03:01]}  Bb7 {[%clk 0:02:57]} 5. Bg2 {[%clk 0:03:01]}  Be7 {[%clk 0:02:56]} 6. O-O {[%clk 0:03:01]}  O-O {[%clk 0:02:56]} 7. Nbd2 {[%clk 0:03:00]}  c5 {[%clk 0:02:52]} 8. dxc5 {[%clk 0:02:54]}  Bxc5 {[%clk 0:02:51]} 9. b3 {[%clk 0:02:54]}  d5 {[%clk 0:02:50]} 10. Bb2 {[%clk 0:02:54]}  Nbd7 {[%clk 0:02:50]} 11. Rc1 {[%clk 0:02:53]}  Rc8 {[%clk 0:02:50]} 12. cxd5 {[%clk 0:02:53]}  Nxd5 {[%clk 0:02:49]} 13. Nc4 {[%clk 0:02:50]}  N7f6 {[%clk 0:02:43]} 14. Nfe5 {[%clk 0:02:45]}  Qe7 {[%clk 0:02:36]} 15. Nd3 {[%clk 0:02:39]}  Rfd8 {[%clk 0:02:32]} 16. Nxc5 {[%clk 0:02:38]}  bxc5 {[%clk 0:02:32]} 17. Qc2 {[%clk 0:02:33]}  Nb4 {[%clk 0:02:31]} 18. Qb1 {[%clk 0:02:32]}  Bxg2 {[%clk 0:02:31]} 19. Kxg2 {[%clk 0:02:33]}  Qb7+ {[%clk 0:02:30]} 20. Kg1 {[%clk 0:02:32]}  Qd5 {[%clk 0:02:26]} 21. Rfd1 {[%clk 0:02:26]}  Qh5 {[%clk 0:02:26]} 22. Bxf6 {[%clk 0:02:19]}  gxf6 {[%clk 0:02:23]} 23. Nd6 {[%clk 0:02:19]}  Rb8 {[%clk 0:02:17]} 24. Ne4 {[%clk 0:02:17]}  Qxe2 {[%clk 0:02:09]} 25. Nxf6+ {[%clk 0:02:12]}  Kg7 {[%clk 0:02:10]} 26. Rxd8 {[%clk 0:01:58]}  Rxd8 {[%clk 0:02:07]} 27. Qxh7+ {[%clk 0:01:57]}  Kxf6 {[%clk 0:02:06]} 28. Qh4+ {[%clk 0:01:58]}  Kg7 {[%clk 0:02:02]} 29. Qxd8 {[%clk 0:01:58]}  Nd3 {[%clk 0:02:02]} 30. Rf1 {[%clk 0:01:55]}  Ne5 {[%clk 0:02:02]} 31. Qg5+ {[%clk 0:01:50]}  Kf8 {[%clk 0:02:01]} 32. Qe3 {[%clk 0:01:47]}  Qh5 {[%clk 0:01:51]} 33. Qxc5+ {[%clk 0:01:44]}  Kg8 {[%clk 0:01:48]} 34. b4 {[%clk 0:01:13]}  Nf3+ {[%clk 0:01:29]} 35. Kg2 {[%clk 0:01:13]}  Nh4+ {[%clk 0:01:29]} 36. Kh3 {[%clk 0:00:57]}  Nf5+ {[%clk 0:01:22]} 37. Kg2 {[%clk 0:00:56]}  Nh4+ {[%clk 0:01:21]} 38. Kg1 {[%clk 0:00:52]}  Nf3+ {[%clk 0:01:14]} 39. Kg2 {[%clk 0:00:49]}  Nh4+ {[%clk 0:01:03]} 1/2-1/2


[Site "https://www.chess.com"]

[Event "Titled Tuesday Blitz February 14 Late 2023"]
[White "Womacka, Mathias"]
[Black "FuenfgegenWilly"]
[WhiteFideId "4611390"]
[WhiteElo "2396"]
[BlackElo "2322"]
[Result "1-0"]
[Round "08"]
[TimeControl "180+2"]
[Date "2023.02.14"]
[WhiteClock "0:00:17"]
[BlackClock "0:00:02"]

1. e4 {[%clk 0:03:00]}  c6 {[%clk 0:02:58]} 2. d4 {[%clk 0:02:58]}  g6 {[%clk 0:02:58]} 3. Nc3 {[%clk 0:02:54]}  Bg7 {[%clk 0:02:59]} 4. Nf3 {[%clk 0:02:51]}  d5 {[%clk 0:02:59]} 5. h3 {[%clk 0:02:51]}  Nf6 {[%clk 0:02:58]} 6. e5 {[%clk 0:02:47]}  Ne4 {[%clk 0:02:58]} 7. Nxe4 {[%clk 0:02:47]}  dxe4 {[%clk 0:02:59]} 8. Ng5 {[%clk 0:02:47]}  c5 {[%clk 0:03:00]} 9. Nxe4 {[%clk 0:02:40]}  cxd4 {[%clk 0:02:53]} 10. f4 {[%clk 0:02:39]}  Nc6 {[%clk 0:02:49]} 11. Bc4 {[%clk 0:02:34]}  O-O {[%clk 0:02:34]} 12. O-O {[%clk 0:02:33]}  Bf5 {[%clk 0:02:30]} 13. Ng3 {[%clk 0:02:32]}  Rc8 {[%clk 0:02:15]} 14. Nxf5 {[%clk 0:02:30]}  gxf5 {[%clk 0:02:16]} 15. e6 {[%clk 0:02:23]}  Kh8 {[%clk 0:02:16]} 16. exf7 {[%clk 0:01:57]}  e5 {[%clk 0:02:15]} 17. Be6 {[%clk 0:01:38]}  Rc7 {[%clk 0:02:13]} 18. fxe5 {[%clk 0:01:22]}  Nxe5 {[%clk 0:02:13]} 19. Rxf5 {[%clk 0:01:19]}  Qd6 {[%clk 0:02:00]} 20. Bb3 {[%clk 0:01:18]}  d3 {[%clk 0:01:52]} 21. cxd3 {[%clk 0:01:14]}  Nxd3 {[%clk 0:01:45]} 22. Be3 {[%clk 0:01:03]}  Rd7 {[%clk 0:01:15]} 23. Rd5 {[%clk 0:00:58]}  Qxd5 {[%clk 0:01:00]} 24. Bxd5 {[%clk 0:00:56]}  Rxd5 {[%clk 0:01:01]} 25. Qb3 {[%clk 0:00:47]}  Rd7 {[%clk 0:00:52]} 26. Rd1 {[%clk 0:00:44]}  Rfd8 {[%clk 0:00:52]} 27. Bg5 {[%clk 0:00:32]}  Bd4+ {[%clk 0:00:50]} 28. Kh2 {[%clk 0:00:26]}  Be5+ {[%clk 0:00:42]} 29. g3 {[%clk 0:00:26]}  Kg7 {[%clk 0:00:04]} 30. Bxd8 {[%clk 0:00:23]}  Nc5 {[%clk 0:00:04]} 31. Qc2 {[%clk 0:00:19]}  Ne6 {[%clk 0:00:02]} 32. Rxd7 {[%clk 0:00:17]} 1-0


[Site "https://www.chess.com"]